{"text_format":"2","workbook":"xlsx","n_sheets":8,"sheets":["Neděle  Sunday 30.6.","Pondělí  Monday 1.7.","Úterý  Tuesday 2.7.","Středa  Wednesday 3.7.","Rozměry pódií  Size of the stag","List 14","Seznam skupin  Code Groups","Contol List"],"not_rendered":{"charts":0,"images":1,"macros":0,"external_links":0,"defined_names":0,"comments":0,"pivot_tables":0},"unopened":[],"bounds":{"document_bytes":16777216,"sheet_cells":100000,"run_cost":"one","rows_first":2000,"rows_last":500,"rows_between":2000,"halvings":0,"cell_chars":16384,"cell_head_chars":4096},"cells_cut":0,"cells_raw":0,"read":"whole","date_system":"1900"}

{"sheet":"Neděle  Sunday 30.6.","index":0,"n_rows":18,"n_cols":13,"rows_kept":18,"cut":false,"hidden":false,"merged":[[0,0,0,12]]}
[]
["Tyršův dům  / Tyrš House"]
["Neděle / Sunday 30. 6. 2024",null,null,null,"Čas / Time:","16:30 - 19:00  (4:30 PM - 7:00 PM)"]
["Datum / Date","Země / Country","Kód","Organizace","Skupina / Group","Název vystoupení / Name of performance","Pořadí / Perf. #","Čas / Length (min)","Čas na přípravu / Preparation time","Zkouška / Rehearsal","Šatny /Dressing room","Tělocvična / Warm-up gym","Čas vystoupení / Time on stage"]
[null,null,null,"Zahájení programu / Start of the programme",null,null,null,5.0,{"$nulls":4},{"$f":"timevalue(left(F3,5))","v":"16:30:00"}]
["2024-06-30","Serbia","SR01","Serbian Sokol Federation","Sokolsko društvo Beograd Matica","Zero Gravity - Trampoline",1.0,7.0,"00:02:00","13:00-13:15",{"$f":"M6-30/1440","v":"16:07:00"},{"$f":"M6-20/1440","v":"16:17:00"},{"$f":"M5+(H5)/1440+I6","v":"16:37:00"}]
["2024-06-30","Slovenia","SL05","ŠD Sokol Bežigrad","ŠD Sokol Bežigrad","Gimnastični veterani",2.0,6.0,"00:02:00","13:15-13:30","16:16:00","16:26:00","16:46:00"]
["2024-06-30","Serbia","SR02","Serbian Sokol Federation","Sokolsko društvo Beograd Matica","Zero Gravity - Floor acrobatics, dance elements",3.0,7.0,"00:02:30","13:30-13:40","16:24:30","16:34:30","16:54:30"]
["2024-06-30","Denmark","DK02","Maribo Gymnastics Forening","Maribo Gymnastics Forening","Maribo OldStars",4.0,12.0,"00:01:00","13:40-13:55","16:32:30","16:42:30","17:02:30"]
["2024-06-30","Slovakia","SK02","T.J. Sokol SOŠ Trebišov","T.J. Sokol SOŠ Trebišov","Dunaj",5.0,7.0,"00:01:00","13:55-14:05","16:45:30","16:55:30","17:15:30"]
["2024-06-30","Denmark","DK03","Maribo Gymnastics Forening","Maribo Gymnastics Forening","The Vikings",6.0,12.0,"00:01:00","14:05-14:20","16:53:30","17:03:30","17:23:30"]
["2024-06-30","Česká republika","CZ09","T.J. Sokol Opava ","T.J. Sokol Opava ","Louka",7.0,7.0,"00:01:00","14:20-14:30","17:06:30","17:16:30","17:36:30"]
["2024-06-30","Česká republika","CZ03","ČASPV","Dětská skladba","Diskopříběh",8.0,8.0,"00:01:30","14:30-14:40","17:15:00","17:25:00","17:45:00"]
["2024-06-30",{"$nulls":5},9.0,null,null,null,"17:23:00","17:33:00","17:53:00"]
["2024-06-30",{"$nulls":5},10.0,null,null,null,"17:23:00","17:33:00","17:53:00"]
["2024-06-30","Denmark","DK04","Ollerup",null,null,9.0,60.0,"00:01:00","14:40-14:55","17:24:00","17:34:00","17:54:00"]
[null,null,null,"Ukončení programu / End of the programme",null,null,null,5.0,{"$nulls":4},"18:54:00"]
[{"$nulls":6},"Čas / Length (min)",{"$f":"SUM(H5:H17)","v":136},{"$nulls":4},"18:59:00"]

{"sheet":"Pondělí  Monday 1.7.","index":1,"n_rows":57,"n_cols":12,"rows_kept":57,"cut":false,"hidden":false,"merged":[[0,0,0,12],[54,1,54,5]]}
[]
["Tyršův dům / Tyrš House"]
["Pondělí / Monday 1. 7.",null,null,null,"Čas / Time: 18:00 - 20:00 (6:00 PM - 8:00 PM)"]
["Workshopy","/  Workshops",null,"Tyršův dům"]
[]
[]
["Pondělí / Monday 1. 7.",null,null,null,"Čas/Time: ","18:00 – 20:00 (6:00 PM - 8:00 PM)"]
["Datum / Date","Země / Country","Kód","Organizace / Organisation","Skupina / Group","Název vystoupení / Name of performance","Pořadí / Per. #","Čas / Length (min)","Čas na přípravu / Preparation time","Šatny /Dressing room","Tělocvina / Warm-up gym","Čas vystoupení / Time on stage"]
[null,null,null,"Zahájení programu / Start of the programme",null,null,null,5.0,null,null,null,{"$f":"timevalue(left(F7,5))","v":"18:00:00"}]
["2024-07-01","Slovenia","SL03","Metliški Sokoli/Falcon Metlika","Metliške sokolice (female falcon)",null,1.0,5.0,"00:00:30",{"$f":"K10-10/1440","v":"17:35:30"},{"$f":"L10-20/1440","v":"17:45:30"},{"$f":"L9+(H9)/1440+I10","v":"18:05:30"}]
["2024-07-01","Slovenia","SL04","ŠD Partizan Sevnica","ŠD Partizan Sevnica",null,2.0,6.0,"00:00:30","17:41:00","17:51:00","18:11:00"]
["2024-07-01","Slovenia","SL02","Metliški Sokoli/Falcon Metlika","Metliški sokoli (male falcons)",null,3.0,5.0,"00:01:00","17:48:00","17:58:00","18:18:00"]
["2024-07-01","Denmark","DK03","Maribo Gymnastics Forening","Maribo Gymnastics Forening","The Vikings",4.0,12.0,"00:00:30","17:53:30","18:03:30","18:23:30"]
["2024-07-01","Denmark","DK01","Bjerringbro Gymnastik Forening - DGI Midtylland","Bjerringbro Gymnastik Forening","Glad Gymnastik MK",5.0,12.0,"00:01:00","18:06:30","18:16:30","18:36:30"]
["2024-07-01","Denmark","DK02","Maribo Gymnastics Forening","Maribo Gymnastics Forening","Maribo OldStars",6.0,12.0,"00:02:00","18:20:30","18:30:30","18:50:30"]
["2024-07-01","Slovenia","SL01","Televadno Sokol Brežice","Televadno Sokol Brežice",null,7.0,5.0,"00:02:00","18:34:30","18:44:30","19:04:30"]
["2024-07-01","Slovenia","SL05","ŠD Sokol Bežigrad","ŠD Sokol Bežigrad","Gimnastični veterani",8.0,6.0,"00:02:00","18:41:30","18:51:30","19:11:30"]
["2024-07-01","Česká republika","CZ03","Česká asociace sport pro všechny","Česká asociace sport pro všechny","Diskopříběh",9.0,8.0,"00:01:00","18:48:30","18:58:30","19:18:30"]
["2024-07-01","Denmark","DK06","Ollerup",null,null,10.0,15.0,"00:03:00","18:59:30","19:09:30","19:29:30"]
["2024-07-01",{"$nulls":5},14.0,null,null,"19:14:30","19:24:30","19:44:30"]
["2024-07-01",{"$nulls":5},15.0,null,null,"19:14:30","19:24:30","19:44:30"]
["2024-07-01",{"$nulls":5},16.0,null,null,"19:14:30","19:24:30","19:44:30"]
["2024-07-01",{"$nulls":5},17.0,null,null,"19:14:30","19:24:30","19:44:30"]
["2024-07-01",{"$nulls":5},18.0,null,null,"19:14:30","19:24:30","19:44:30"]
["2024-07-01",{"$nulls":5},19.0,null,null,"19:14:30","19:24:30","19:44:30"]
["2024-07-01",{"$nulls":5},20.0,null,null,"19:14:30","19:24:30","19:44:30"]
["2024-07-01",{"$nulls":5},21.0,null,null,"19:14:30","19:24:30","19:44:30"]
[null,null,null,"Ukončení programu / End of the programme",null,null,null,5.0,null,null,null,"19:44:30"]
[{"$nulls":6},"Čas / Length (min)",{"$f":"SUM(H9:H28)","v":96}]
[]
["Staroměstské náměstí / Old Town Square"]
["Pondělí / Monday 1. 7.",null,null,null,"Čas / Time: ","14:30 – 17:00 (2:30 PM - 5:00 PM)"]
["Datum / Date","Země / Country","Kód","Organizace / Organisation","Skupina / Group","Název vystoupení  / Name of performance","Pořadí / Per. #","Čas / Length (min)","Čas na přípravu / Preparation time","Vystoupení / Performance"]
[null,null,null,"Zahájení programu / Start of the programme",null,null,null,5.0,null,{"$f":"TIMEVALUE(LEFT(F32,5))","v":"14:30:00"}]
["2024-07-01","Česká republika","CZ07","T.J. Sokol Kralice na Hané","Petrželky :) aneb cvičí celá rodina!","Petrželky :) aneb cvičí celá rodina!",1.0,5.0,"00:00:00",{"$f":"J34+(H34)/1440+I36","v":"14:37:00"}]
["2024-07-01","Slovakia","SK02","T.J. Sokol SOŠ Trebišov","T.J. Sokol SOŠ Trebišov","Dunaj",2.0,7.0,"00:02:00","14:44:00"]
["2024-07-01","Slovakia","SK01","Olympia pri Olympijskou klube Prievidza","Olympia pri Olympijskou klube Prievidza","Viva Viktória",3.0,4.0,"00:02:00","14:52:00"]
["2024-07-01","Česká republika","CZ08","T.J. Sokol Uherský Brod","Slovácké siluety","Hej Sokoly",4.0,4.0,"00:01:00","14:56:00"]
["2024-07-01","Serbia",null,"Vojvodina",null,null,5.0,null,null,"15:02:00"]
["2024-07-01","Česká republika","CZ31","T.J. Sokol Poděbrady","T.J. Sokol Poděbrady","Coco",5.0,3.0,"00:02:00","15:02:30"]
["2024-07-01","Česká republika","CZ10","T.J. Sokol Opava","T.J. Sokol Opava","Pozdrav z Opavy",6.0,6.0,"00:00:30","15:06:30"]
["2024-07-01","Česká republika","CZ33","T.J. Sokol Poděbrady","T.J. Sokol Poděbrady","Vivo",7.0,3.0,"00:01:00","15:13:30"]
["2024-07-01","Serbia","SR03","Serbian Sokol Federation","Sokolsko družstvo Vojvodina","Timsport",8.0,5.0,"00:01:00","15:19:30"]
["2024-07-01","Česká republika","CZ34","T.J. Nýřany z.s.","T.J. Nýřany z.s.","Tajemství v mlze",9.0,4.0,"00:03:00","15:27:30"]
["2024-07-01","Česká republika","CZ32","T.J. Sokol Poděbrady","T.J. Sokol Poděbrady","Avatar",10.0,3.0,"00:03:00","15:32:30"]
["2024-07-01","Česká republika","CZ28","T.J. Sokol Turnov","All Stars Mažoretky Turnov",null,11.0,12.0,"00:01:00","15:37:30"]
["2024-07-01","Česká republika","CZ01","Česká asociace sport pro všechny","Česká asociace sport pro všechny","\"Inter-gym net\"",12.0,5.0,"00:02:00","15:50:30"]
["2024-07-01","Serbia","SR04","Serbian Sokol Federation","Sokolsko družstvo Vojvodina","Sport tim",13.0,4.0,"00:01:00","15:56:00"]
["2024-07-01","Česká republika","CZ02","Česká asociace sport pro všechny","Česká asociace sport pro všechny","Prezentační skupina \"Na moři a na pláži\"",14.0,5.0,"00:00:30","16:00:30"]
["2024-07-01","Serbia","SR05","Serbian Sokol Federation","Sokolsko družstvo Vojvodina","Aerobik Sokol",15.0,5.0,"00:00:30","16:06:00"]
["2024-07-01","Slovakia","CZ25","Sestry Chalupovy","Jdeme na ples","Jdeme na ples",16.0,6.0,"00:00:30","16:12:00"]
["2024-07-01","Česká republika","CZ26","T.J. Sokol Petrovice I.","Bailar Praha",null,17.0,12.0,"00:01:00","16:18:30"]
["2024-07-01","Česká republika","CZ24","Sestry Chalupovy",null,"Jedeme do lázní",18.0,6.0,"00:00:30","16:32:30"]
["2024-07-01","Denmark","DK05","Ollerup",null,null,19.0,15.0,"00:02:00","16:38:30"]
[null,"BUDE UPŘESNĚNO / TO BE ADDED",{"$nulls":7},"16:53:30"]
[null,null,null,"Ukončení programu / End of the programme",null,null,null,5.0,null,"16:53:30"]
[{"$nulls":6},"Čas / Length (min)",{"$f":"SUM(H34:H56)","v":124}]

{"sheet":"Úterý  Tuesday 2.7.","index":2,"n_rows":48,"n_cols":10,"rows_kept":48,"cut":false,"hidden":false,"merged":[[0,0,0,12]]}
[]
["Staroměstské náměstí / Old Town Square"]
["Úterý / Tuesday 2. 7.",null,null,null,"Čas / Time: ","14:00 – 16:00 (2:00 PM - 4:00 PM)"]
["Datum / Date","Země / Country","Kód","Organizace / Organisation","Skupina / Group","Název vystoupení  / Name of performance","Pořadí / Perf. #","Čas / Length (min)","Čas na přípravu / Preparation time","Vystoupení / Performance"]
[null,null,null,"Zahájení programu / Start of the programme",null,null,null,5.0,null,{"$f":"TIMEVALUE(LEFT(F3,5))","v":"14:00:00"}]
["2024-07-02","Česká republika","CZ07","T.J. Sokol Kralice na Hané","Petrželky :) aneb cvičí celá rodina!","Petrželky :) aneb cvičí celá rodina!",1.0,5.0,"00:00:00",{"$f":"J5+(H5)/1440+I6","v":"14:05:00"}]
["2024-07-02","Česká republika","CZ19","T.J. Sokol Rychvald","Ritmo","Anastasia",2.0,4.0,"00:02:00","14:12:00"]
["2024-07-02","Česká republika","CZ10","T.J. Sokol Opava","T.J. Sokol Opava","Pozdrav z Opavy",3.0,6.0,"00:01:00","14:17:00"]
["2024-07-02","Česká republika","CZ20","T.J. Sokol Rychvald","Ritmo","Happy Sisters",4.0,4.0,"00:01:00","14:24:00"]
["2024-07-02","Serbia","SR03","Serbian Sokol Federation","Sokolsko družstvo Vojvodina","Timsport",5.0,4.0,"00:01:00","14:29:00"]
["2024-07-02","Česká republika","CZ21","T.J. Sokol Rychvald","Ritmo","Hej Lady",6.0,4.0,"00:01:00","14:34:00"]
["2024-07-02","Serbia","SR04","Serbian Sokol Federation","Sokolsko družstvo Vojvodina","Sport tim",7.0,4.0,"00:01:00","14:39:00"]
["2024-07-02","Česká republika","CZ08","T.J. Sokol Uherský Brod","Slovácké siluety","Hej sokoly",8.0,4.0,"00:00:30","14:43:30"]
["2024-07-02","Serbia","SR05","Serbian Sokol Federation","Sokolsko družstvo Vojvodina","Aerobik Sokol",9.0,4.0,"00:01:00","14:48:30"]
["2024-07-02","Česká republika","CZ22","T.J. Sokol Rychvald","Ritmo","Nespoutaná",10.0,4.0,"00:00:30","14:53:00"]
["2024-07-02","Česká republika","CZ26","T.J. Sokol Petrovice I.","Bailar Praha",null,11.0,12.0,"00:01:30","14:58:30"]
["2024-07-02","Serbia","SR02","Serbian Sokol Federation","Sokolsko društvo Beograd Matica","Zero Gravity - Floor acrobatics, dance elements",12.0,7.0,"00:01:00","15:11:30"]
["2024-07-02","Slovenia","SL01","Televadno Sokol Brežice","Televadno Sokol Brežice",null,13.0,5.0,"00:00:30","15:19:00"]
["2024-07-02","Česká republika","CZ13","T.J. Sokol Pardubice 1","T.J. Sokol Pardubice 1","Akrobacie na šálách",14.0,8.0,"00:02:30","15:26:30"]
["2024-07-02","Česká republika","CZ05","T.J. Sokol Benátky nad Jizerou","Cirkus  -   Ariel Hoop  (vzdušná akrobacie)",null,15.0,8.0,"00:02:00","15:36:30"]
["2024-07-02","Serbia",{"$nulls":4},16.0,null,null,"15:44:30"]
["2024-07-02","Denmark","DK07","Ollerup",null,null,16.0,15.0,"00:02:00","15:46:30"]
["2024-07-02",{"$nulls":8},"16:01:30"]
["2024-07-02",{"$nulls":8},"16:01:30"]
[null,null,null,"Ukončení programu / End of the programme",null,null,null,5.0,null,"16:01:30"]
[{"$nulls":6},"Čas / Length (min)",{"$f":"SUM(H5:H25)","v":108}]
["Náměstí Míru / Peace Square"]
["Úterý / Tuesday 2. 7. ",null,null,null,"Čas / Time: ","15:00 – 16:30 (2:30 PM - 4:30 PM)"]
["Datum / Date","Země / Country","Kód","Organizace / Organisation","Skupina / Group","Název vystoupení  / Name of performance","Pořadí / Perf. #","Čas / Length (min)","Čas na přípravu / Preparation time","Vystoupení / Performance"]
[null,null,null,"Zahájení programu / Start of the programme",null,null,null,5.0,null,{"$f":"TIMEVALUE(LEFT(F28,5))","v":"15:00:00"}]
["2024-07-02","Ukraine","UK01","T.J. Sokol Malyn","T.J. Sokol Malyn","Jseme silny",1.0,3.0,"00:00:00",{"$f":"J30+(H30)/1440+I31","v":"15:05:00"}]
["2024-07-02","Česká republika","CZ17","T.J. Sokol Dobříš","Spolek odrostlých holek ","Waka waka",2.0,4.0,"00:01:00","15:09:00"]
["2024-07-02","Ukraine","UK02","T.J. Sokol Malyn","T.J. Sokol Malyn","Scorpions",3.0,3.0,"00:00:00","15:13:00"]
["2024-07-02","Česká republika","CZ16","Sotůrek","Sotůrek ","Vlastenecká",4.0,6.0,"00:01:00","15:17:00"]
["2024-07-02","Ukraine","UK03","T.J. Sokol Malyn","T.J. Sokol Malyn","Do obce",5.0,3.0,"00:00:00","15:23:00"]
["2024-07-02","Česká republika","CZ18","T.J. Sokol Dobříš","Spolek odrostlých holek ","Barbíny",6.0,4.0,"00:01:00","15:27:00"]
["2024-07-02","Ukraine","UK04","T.J. Sokol Malyn","T.J. Sokol Malyn","Ukrajinské vzory",7.0,3.0,"00:00:00","15:31:00"]
["2024-07-02","Česká republika","CZ12","T.J. Sokol Prosek",null,null,8.0,4.0,"00:00:30","15:34:30"]
["2024-07-02","Česká republika","CZ34","T.J. Nýřany z.s.","T.J. Nýřany z.s.","Tajemství v mlze",9.0,5.0,"00:01:00","15:39:30"]
["2024-07-02","Česká republika","CZ06","T.J. Dvůr Králové nad Labem","cvičitelky T.J. Dvůr Králové nad Labem","Pocta průkopnicím ženského tělocviku",10.0,3.0,"00:00:30","15:45:00"]
["2024-07-02","Česká republika","CZ14","T.J. Sokol Jedovnice","T.J. Sokol Jedovnice","Čerešničky, Lipka, Dívčí kolečko",11.0,7.0,"00:00:30","15:48:30"]
["2024-07-02","Česká republika","CZ04","T.J. Sokol Brno Židenice","Družstvo TGJ Sokol Brno Židenice",null,12.0,3.0,"00:00:30","15:56:00"]
["2024-07-02","Slovenia","SL03","Metliški Sokoli/Falcon Metlika","Metliške sokolice (female falcon)",null,13.0,5.0,"00:00:30","15:59:30"]
["2024-07-02","Slovakia","SK02","T.J. Sokol SOŠ Trebišov","T.J. Sokol SOŠ Trebišov","Dunaj",14.0,7.0,"00:01:00","16:05:30"]
["2024-07-02","Slovenia","SL02","Metliški Sokoli/Falcon Metlika","Metliški sokoli (male falcons)",null,15.0,5.0,"00:00:30","16:13:00"]
["2024-07-02","Česká republika","CZ26","T.J. Sokol Petrovice I.","Bailar Praha",null,16.0,12.0,"00:00:30","16:18:30"]
[null,null,null,"Ukončení programu / End of the programme",null,null,null,5.0,null,"16:30:30"]
[{"$nulls":6},"Čas / Length (min)",{"$f":"SUM(H30:H47)","v":87}]

{"sheet":"Středa  Wednesday 3.7.","index":3,"n_rows":78,"n_cols":12,"rows_kept":78,"cut":false,"hidden":false,"merged":[[0,0,0,12]]}
[]
["Staroměstské náměstí / Old Town Square"]
["Středa / Wednesday 3. 7.",null,null,null,"Čas / Time:","14:30 – 16:00 (2:30 PM - 4:00 PM)"]
["Datum / Date","Země / Country","Kód","Organizace / Organisation","Skupina / Group","Název vystoupení  / Name of performance","Pořadí / Perf. #","Čas / Length (min)","Čas na přípravu / Preparation time","Vystoupení / Performance"]
[null,null,null,"Zahájení programu  ",null,null,null,5.0,null,{"$f":"TIMEVALUE(LEFT(F3,5))","v":"14:30:00"}]
["2024-07-03","Denmark","DK03","Maribo Gymnastics Forening","Maribo Gymnastics Forening","The Vikings",1.0,12.0,"00:00:30",{"$f":"J5+(H5)/1440+I7","v":"14:35:00"}]
["2024-07-03","Ukraine","UK05","T.J. Sokol Malyn","T.J. Sokol Malyn","Nezlomný",2.0,3.0,"00:00:00","14:47:30"]
["2024-07-03","Denmark","DK02","Maribo Gymnastics Forening","Maribo Gymnastics Forening","Maribo Oldstars",3.0,12.0,"00:00:30","14:51:00"]
["2024-07-03","Česká republika","CZ19","T.J. Sokol Rychvald","Ritmo","Anastasia",4.0,4.0,"00:00:30","15:04:00"]
["2024-07-03","Česká republika","CZ31","T.J. Sokol Poděbrady","T.J. Sokol Poděbrady","Coco",5.0,3.0,"00:01:00","15:08:00"]
["2024-07-03","Ukraine","UK06","T.J. Sokol Malyn","T.J. Sokol Malyn","Lidé jako kameny",6.0,3.0,"00:00:00","15:11:30"]
["2024-07-03","Česká republika","CZ20","T.J. Sokol Rychvald","Ritmo","Happy Sisters",7.0,4.0,"00:00:30","15:15:00"]
["2024-07-03","Slovakia","SK01","Olympia pri Olympijskou klube Prievidza","Olympia pri Olympijskou klube Prievidza","Viva Viktória",8.0,4.0,"00:00:30","15:22:00"]
["2024-07-03","Česká republika","CZ21","T.J. Sokol Rychvald","Ritmo","Hej Lady",9.0,4.0,"00:03:00","15:26:00"]
["2024-07-03","Ukraine","UK07","T.J. Sokol Malyn","T.J. Sokol Malyn","Najděte svou odpověď",10.0,3.0,"00:00:00","15:30:30"]
["2024-07-03","Česká republika","CZ22","T.J. Sokol Rychvald","Ritmo","Nespoutaná",11.0,4.0,"00:00:30","15:34:30"]
["2024-07-03","Česká republika","CZ33","T.J. Sokol Poděbrady","T.J. Sokol Poděbrady","Vivo",12.0,3.0,"00:01:00","15:38:30"]
["2024-07-03","Ukraine","UK08","T.J. Sokol Malyn","T.J. Sokol Malyn","Žlutomodré srdce",13.0,2.0,"00:00:00","15:42:30"]
["2024-07-03","Česká republika","CZ32","T.J. Sokol Poděbrady","T.J. Sokol Poděbrady","Avatar",14.0,3.0,"00:01:00","15:46:30"]
["2024-07-03","Česká republika","CZ13","T.J. Sokol Pardubice 1","T.J. Sokol Pardubice 1","Akrobacie na šálách",15.0,6.0,"00:02:00","15:51:30"]
["2024-07-03","Česká republika","CZ05","T.J. Sokol Benátky nad Jizerou","Cirkus  -   Ariel Hoop  (vzdušná akrobacie)",null,16.0,6.0,"00:02:00","15:57:30"]
["2024-07-03",{"$nulls":5},17.0,null,null,"16:03:30"]
["2024-07-03",{"$nulls":5},18.0,null,null,"16:03:30"]
["2024-07-03",{"$nulls":5},19.0,null,null,"16:03:30"]
["2024-07-03",{"$nulls":5},20.0,null,null,"16:03:30"]
["2024-07-03",{"$nulls":5},21.0,null,null,"16:03:30"]
["2024-07-03",{"$nulls":5},22.0,null,null,"16:03:30"]
["2024-07-03",{"$nulls":5},23.0,null,null,"16:03:30"]
["2024-07-03",{"$nulls":5},24.0,null,null,"16:03:30"]
["2024-07-03",{"$nulls":5},25.0,null,null,"16:03:30"]
[null,null,null,"Ukončení programu",null,null,null,5.0,null,"16:03:30"]
[{"$nulls":6},"Čas / Length (min)",{"$f":"SUM(H5:H31)","v":86}]
[]
["Náměstí Míru / Piece Square"]
["Středa / Wednesday 3. 7.",null,null,null," Čas / Time ","14:30 – 16:00 (2:30 PM - 4:00 PM)"]
["Datum / Date","Země / Country","Kód","Organizace / Organisation","Skupina / Group","Název vystoupení  / Name of performance","Pořadí / Perf. #","Čas / Length (min)","Čas na přípravu / Preparation time","Vystoupení / Performance"]
[null,null,null,"Zahájení programu  ",null,null,null,5.0,null,{"$f":"TIMEVALUE(LEFT(F35,5))","v":"14:30:00"}]
["2024-07-03","Česká republika","CZ17","T.J. Sokol Dobříš","Spolek odrostlých holek ","Waka waka",1.0,4.0,"00:00:00",{"$f":"J37+(H37)/1440+I38","v":"14:35:00"}]
["2024-07-03","Česká republika","CZ16","Sotůrek","Sotůrek","Kamarádi",2.0,6.0,"00:00:30","14:39:30"]
["2024-07-03","Česká republika","CZ02","Česká asociace sport pro všechny","Česká asociace sport pro všechny","Prezentační skupina \"Na moři a na pláži\"",3.0,5.0,"00:03:00","14:48:30"]
["2024-07-03","Česká republika","CZ06","T.J. Dvůr Králové nad Labem","cvičitelky T.J. Dvůr Králové nad Labem","Pocta průkopnicím ženského tělocviku",4.0,3.0,"00:00:30","14:54:00"]
["2024-07-03","Česká republika","CZ01","Česká asociace sport pro všechny","Česká asociace sport pro všechny","\"Inter-gym net\"",5.0,5.0,"00:01:00","14:58:00"]
["2024-07-03","Česká republika","CZ12","T.J. Sokol Prosek",null,null,6.0,4.0,"00:00:30","15:03:30"]
["2024-07-03","Česká republika","CZ17","T.J. Sokol Dobříš","Spolek odrostlých holek ","Barbíny",7.0,5.0,"00:00:30","15:08:00"]
["2024-07-03","Česká republika","CZ25","Sestry Chalupovy","Sestry Chalupovy","Jdeme na ples",8.0,6.0,"00:01:30","15:14:30"]
["2024-07-03","Česká republika","CZ26","T.J. Sokol Petrovice I.","Bailar Praha",null,9.0,12.0,"00:01:00","15:21:30"]
["2024-07-03","Česká republika","CZ24","Sestry Chalupovy","Sestry Chalupovy","Jedeme do lázní",10.0,6.0,"00:00:30","15:34:00"]
["2024-07-03","Česká republika","CZ34","T.J. Nýřany z.s.","T.J. Nýřany z.s.","Tajemství v mlze",11.0,5.0,"00:01:00","15:41:00"]
["2024-07-03","Česká republika","CZ04","T.J. Sokol Brno Židenice","Družstvo TGJ Sokol Brno Židenice",null,12.0,3.0,"00:01:00","15:47:00"]
["2024-07-03","Česká republika","CZ14","T.J. Sokol Jedovnice","T.J. Sokol Jedovnice","Čerešničky, Lipka, Dívčí kolečko",13.0,7.0,"00:00:30","15:50:30"]
["2024-07-03","Česká republika","CZ16","Sotůrek","Sotůrek","Vlastenecká",14.0,4.0,"00:01:00","15:58:30"]
[{"$nulls":9},"16:02:30"]
[null,null,null,"Ukončení programu",null,null,null,5.0,null,"16:02:30"]
[{"$nulls":6},"Čas / Length (min)",{"$f":"SUM(H37:H53)","v":85}]
[]
["Tyršův dům / Tyrš House"]
["Středa / Wednesday 3. 7. ",null,null,null,"Čas / Time: ","15:00 – 16:30 (3:00 PM - 4:30 PM)"]
["Datum / Date","Země / Country","Kód","Organizace / Organisation","Skupina / Group","Název vystoupení  / Name of performance","Pořadí / Perf. #","Čas / Length (min)","Čas na přípravu / Preparation time","Šatny /Dressing room","Tělocvina / Warm-up gym","Vystoupení / Performance"]
[null,null,null,"Zahájení programu  ",null,null,null,5.0,null,null,null,{"$f":"TIMEVALUE(LEFT(F57,5))","v":"15:00:00"}]
["2024-07-03","Česká republika","CZ03","ČASPV","Dětská skladba","Diskopříběh",1.0,8.0,"00:00:00",{"$f":"K60-10/1440","v":"14:40:00"},{"$f":"L59-10/1440","v":"14:50:00"},{"$f":"L59+(H59+I60)/1440","v":"15:05:00"}]
["2024-07-03","Serbia","SR01","Serbian Sokol Federation","Sokolsko društvo Beograd Matica","Zero Gravity - Trampoline",2.0,7.0,"00:00:30","14:45:00","14:55:00","15:13:00.021"]
["2024-07-03","Slovakia","SK02","T.J. Sokol SOŠ Trebišov","T.J. Sokol SOŠ Trebišov","Dunaj",3.0,7.0,"00:00:30","14:53:00.021","15:03:00.021","15:20:00.042"]
["2024-07-03","Česká republika","CZ28","T.J. Sokol Turnov","All Stars Mažoretky Turnov",null,4.0,12.0,"00:01:00","15:00:00.042","15:10:00.042","15:27:00.083"]
["2024-07-03","Slovenia","SL04","ŠD Partizan Sevnica","ŠD Partizan Sevnica",null,5.0,6.0,"00:00:30","15:07:00.083","15:17:00.083","15:39:00.104"]
["2024-07-03","Denmark","DK01","Bjerringbro Gymnastik Forening - DGI Midtylland","Bjerringbro Gymnastik Forening","Glad Gymnastik MK",6.0,12.0,"00:00:30","15:19:00.104","15:29:00.104","15:45:00.125"]
["2024-07-03","Serbia","SR02","Serbian Sokol Federation","Sokolsko društvo Beograd Matica","Zero Gravity - Floor acrobatics, dance elements",7.0,7.0,"00:00:30","15:25:00.125","15:35:00.125","15:57:00.146"]
["2024-07-03","Denmark","DK03","Maribo Gymnastics Forening","Maribo Gymnastics Forening","The Vikings",8.0,12.0,"00:00:30","15:37:00.146","15:47:00.146","16:04:00.167"]
["2024-07-03","Denmark","DK02","Maribo Gymnastics Forening","Maribo Gymnastics Forening","Maribo OldStars",9.0,12.0,"00:00:30","15:44:00.167","15:54:00.167","16:16:00.187"]
["2024-07-03","USA",{"$nulls":4},10.0,{"$nulls":4},{"$f":"L68+(H68+K69)/1440","v":"16:28:00.188"}]
["2024-07-03","Slovenia",{"$nulls":9},"16:28:00.188"]
["2024-07-03","Česká republika",{"$nulls":4},12.0,{"$nulls":4},"16:28:00.188"]
["2024-07-03","USA",{"$nulls":4},14.0,{"$nulls":4},"16:28:00.188"]
[null,null,null,"Ukončení programu",null,null,null,5.0,null,null,null,"16:28:00.188"]
[{"$nulls":6},"Čas / Length (min)",{"$f":"SUM(H59:H73)","v":93}]
[]
["Tyršův dům"]
["Středa / Wednesday 3. 7. ",null,null,null,"Čas / Time: ","17:00 – 19:00 (5:00 PM - 7:00 PM)"]
["Workshopy","/  Workshops",null,"Tyršův dům",null,null,"Čas / Time"]

{"sheet":"Rozměry pódií  Size of the stag","index":4,"n_rows":4,"n_cols":2,"rows_kept":4,"cut":false,"hidden":false,"merged":[]}
[null,"Size of the stage"]
["Staroměstské náměstí / Old Town Square","13x13 m"]
["Náměstí míru / Peace Square","10x10 m"]
["Tyršův dům / Tyrš House","20x40 m"]

{"sheet":"List 14","index":5,"n_rows":69,"n_cols":9,"rows_kept":69,"cut":false,"hidden":true,"merged":[]}
["Kód /  Code","Země / Country","Organizace / Organisation","Skupina / Group","Vystoupení / Performance"]
["SR01","Serbia","Serbian Sokol Federation","Sokolsko družstvo Beograd Matica","Zero Gravity - Trampoline","30.6. TD","3.7. TD"]
["SR02","Serbia","Serbian Sokol Federation","Sokolsko družstvo Beograd Matica","Zero Gravity - Floor acrobatics, dance elements","30.6. TD","2.7. SN","3.7. TD"]
["SR03","Serbia","Serbian Sokol Federation","Sokolsko družstvo Vojvodina","Tim sport","1.7. SN","2.7. SN"]
["SR04","Serbia","Serbian Sokol Federation","Sokolsko družstvo Vojvodina","Sport tim","1.7. SN","2.7. SN"]
["SR05","Serbia","Serbian Sokol Federation","Sokolsko družstvo Vojvodina","Aerobik Sokol","1.7. SN","2.7. SN"]
[]
[]
["CZ01","Česká republika","ČASPV","ČASPV","Intergymnet","1.7. SN","3.7. NM"]
["CZ02","Česká republika","ČASPV","ČASPV","Na moři a na pláži","1.7. SN","3.7. NM"]
["CZ03","Česká republika","ČASPV","ČASPV","Diskopříběh","30.6. TD","1.7. TD","3.7. TD"]
["CZ04","Česká republika","T.J. Sokol Brno Židenice","TGJ",null,"2.7. SN","3.7. NM"]
["CZ05","Česká republika","T.J. Sokol Benátky nad Jizerou","T.J. Sokol Benátky nad Jizerou","Cirkus - Ariel Hoop","2.7. SN","3.7. SN"]
["CZ06","Česká republika","Dvůr králové nad Labem","Cvičitelky DKNL","Pocta průkopnicím ženského tělocviku","2.7. SN","3.7. NM"]
["CZ07","Česká republika","Sokol Kralice na Hané","Petrželky",null,"1.7. SN","2.7. SN"]
["CZ08","Česká republika","T.J. Sokol UHerský Brod","Slovácké siluety",null,"1.7. SN","2.7. SN"]
["CZ09","Česká republika","T.J. Sokol Opava","T.J. Sokol Opava","Louka","1.7. TD"]
["CZ10","Česká republika","T.J. Sokol Opava","T.J. Sokol Opava","Pozdrav z Opavy","1.7. SN","2.7. SN"]
["CZ11","Česká republika"]
["CZ12","Česká republika","Prosek",null,null,"2.7. SN","3.7. NM"]
["CZ13","Česká republika","T.J. Sokol Pradubice I.","T.J. Sokol Pradubice I.","Akrobacie na šálách","2.7. SN","3.7. SN"]
["CZ14","Česká republika","T.J. Sokol Jedovnice",null,"Čerešničky, Lipka, Dívčí kolečko","2.7. SN","3.7. NM"]
["CZ15","Česká republika"]
["CZ16","Česká republika","Sotůrek","Sotůrek","Kamarádi","2.7. SN","3.7. NM","3.7. NM"]
["CZ17","Česká republika","T.J. Sokol Dobříš ","Spolek odrostlých holek 1",null,"2.7. SN","3.7. NM"]
["CZ18","Česká republika","T.J. Sokol Dobříš ","Spolek odrostlých holek 2",null,"2.7. SN","3.7. NM"]
["CZ19","Česká republika","T.J. Sokol Rychvald","T.J. Sokol Rychvald","Ritmo 1","2.7. SN","3.7. SN"]
["CZ20","Česká republika","T.J. Sokol Rychvald","T.J. Sokol Rychvald","Ritmo 2","2.7. SN","3.7. SN"]
["CZ21","Česká republika","T.J. Sokol Rychvald","T.J. Sokol Rychvald","Ritmo 3","2.7. SN","3.7. SN"]
["CZ22","Česká republika","T.J. Sokol Rychvald","T.J. Sokol Rychvald","Ritmo 4","2.7. SN","3.7. SN"]
["CZ23","Česká republika"]
["CZ24","Česká republika","Sestry Chalupovy",null,"Jedeme do lázní","1.7. SN","3.7. NM"]
["CZ25","Česká republika","Sestry Chalupovy",null,"Jdeme na ples","1.7. SN","3.7. NM"]
["CZ26","Česká republika","T.J. Sokol Petrovice I.","Bailar Praha",null,"1.7. SN","2.7. SN","2.7. NM","3.7. NM"]
["CZ27","Česká republika"]
["CZ28","Česká republika","T.J. Sokol Turnov",null,null,"1.7. SN","3.7. TD"]
["CZ29","Česká republika"]
["CZ30","Česká republika"]
["CZ31","Česká republika","T.J. Sokol Poděbrady","T.J. Sokol Poděbrady","Coco","1.7. SN","3.7. SN"]
["CZ32","Česká republika","T.J. Sokol Poděbrady","T.J. Sokol Poděbrady","Avatar","1.7. SN","3.7. SN"]
["CZ33","Česká republika","T.J. Sokol Poděbrady","T.J. Sokol Poděbrady","Vivo","1.7. SN","3.7. SN"]
["CZ34","Česká republika","T.J. Nýřany","T.J. Nýřany","Tajemství v mlze","1.7. SN","2.7. SN","3.7. NM"]
[]
["DK01","Denmark","Bjerringbro Gymnastik Forening - DK Midtylland","Bjerringbro Gymnastik Forening ",null,"1.7. TD","3.7. TD"]
["DK02","Denmark","Maribo Gymnastics Forening","Maribo Gymnastics Forening","Maribo Oldstars","30.6. TD","1.7. TD","3.7. SN","3.7. TD"]
["DK03","Denmark","Maribo Gymnastics Forening","Maribo Gymnastics Forening","The Vikings","30.6. TD","1.7. TD","3.7. SN","3.7. TD"]
["DK04","Denmark","Ollerup",null,null,"30.6. TD"]
["DK05","Denmark","Ollerup",null,null,"1.7. SN"]
["DK06","Denmark","Ollerup",null,null,"1.7. TD"]
["DK07","Denmark","Ollerup",null,null,"2.7. SN"]
[]
["UK01","Ukraine","T.J. Sokol Malyn","T.J. Sokol Malyn","Jseme silny","2.7. SN"]
["UK02","Ukraine","T.J. Sokol Malyn","T.J. Sokol Malyn","Scorpions","2.7. SN"]
["UK03","Ukraine","T.J. Sokol Malyn","T.J. Sokol Malyn","Do obce","2.7. SN"]
["UK04","Ukraine","T.J. Sokol Malyn","T.J. Sokol Malyn","Ukrajinské vzory","2.7. SN"]
["UK05","Ukraine","T.J. Sokol Malyn","T.J. Sokol Malyn","Nezlomný","3.7. SN"]
["UK06","Ukraine","T.J. Sokol Malyn","T.J. Sokol Malyn","Lidé jako kameny","3.7. SN"]
["UK07","Ukraine","T.J. Sokol Malyn","T.J. Sokol Malyn","Najděte svou odpověď","3.7. SN"]
["UK28","Ukraine","T.J. Sokol Malyn","T.J. Sokol Malyn","Žlutomodré srdce","3.7. SN"]
[]
["SL01","Slovenia","Televadno Sokol Brežice","Televadno Sokol Brežice",null,"1.7. TD","2.7. SN"]
["SL02","Slovenia","Metliški Sokoli/Falcon Metlika","Metliški sokoli (male falcon)",null,"1.7. TD","2.7. NM"]
["SL03","Slovenia","Metliški Sokoli/Falcon Metlika","Metliške sokolice (female falcon)",null,"1.7. TD","2.7. NM"]
["SL04","Slovenia","ŠD Partizan Sevnica","ŠD Partizan Sevnica",null,"1.7. TD","3.7. TD"]
["SL05","Slovenia","ŠD Sokol Bežigrad","Gimnastični veterani",null,"30.6. TD","1.7. TD"]
[]
["SK01","Slovakia","Olympia pri Olmypijskou klube Prievidza","Olympia pri Olmypijskou klube Prievidza",null,"1.7. SN","3.7. SN"]
["SK02","Slovakia","T.J. Sokol SOŠ Trebišov","T.J. Sokol SOŠ Trebišov",null,"30.6. TD","1.7. SN","2.7. SN","3.7. TD"]
["SK03","Slovakia"]

{"sheet":"Seznam skupin  Code Groups","index":6,"n_rows":112,"n_cols":7,"rows_kept":112,"cut":false,"hidden":true,"merged":[]}
["Kód /  Code","Země / Country","Organizace / Organisation","Sokolská župa","Klub / Club","Skupina / Group","Vystoupení / Performance"]
["BR01","Brasil",null,null,"State University of Campinas - UNICAMP","Livia Pasqua","Capoeira"]
["BR02","Brasil",null,null,"State University of Campinas - Unicamp","Grupo Ginastico Unicamp Ânima","Flutú"]
["BY01","Belarus",null,null,"Belarussian federation of general gymnastic","Yana Lukavets and Aliaksandra Yakushava","Between Heaven and Earth"]
["CZ01","Česká republika","ČOS",null,"Vzdělavatelský odbor ČOS","Sokolská stráž a legionáři","Republika"]
["CZ02","Česká republika","ČOS","Východočeská - Pippichova","T. J. Sokol Kunvald","T.J. Sokol Kunvald","Sokolské retro"]
["CZ03","Česká republika","ČOS","Barákova","Sokolská Župa Barákova","Inspirace hudbou","Vivat Vivaldi"]
["CZ04","Česká republika","ČOS","Moravskoslezská","T.J. Sokol Opava","Sokol Opava","Pradleny"]
["CZ05","Česká republika","ČASPV",null,"ASPV KHK","ČASPV","Vltava"]
["CZ06","Česká republika","ČOS","Beskydská - Jana Čapka","T. J. Sokol Rychvald","Ritmo - lady","Baby z ABBY"]
["CZ07","Česká republika","ČOS","Orlická","T. J. Sokol Doudleby nad Orlicí","Floriteam","Když nemůžeš tak přidej"]
["CZ08","Česká republika",null,null,"TJ DIOSS Nýřany","TJ DIOSS Nýřany","Romance"]
["CZ09","Česká republika","ČOS","Moravskoslezská","T.J. Sokol Opava","Sokol Opava","Láska a závist"]
["CZ10","Česká republika","ČOS","Valašská - Fr. Palackého","T. J. Sokol Valašské Meziříčí","Lopika","Koloběh života"]
["CZ11","Česká republika","ČOS","Jizerská","T. J. Sokol Huntířov nad Jizerou","Wellnes team Sokol Huntířov nad Jizerou","Step aerobik - Flashdance"]
["CZ12","Česká republika","ČOS","Podkrkonošská - Jiráskova","T. J. Sokol Dvůr Králové nad Labem","Teamgym Junior III","Teamgymová pódiová skladba"]
["CZ13","Česká republika","ČOS","Jičínská - Bergrova","T. J. Sokol Jičín","Step team 9-10 let","Rio"]
["CZ14","Česká republika","ČOS","Jičínská - Bergrova","T. J. Sokol Jičín","Step team 9-10 let","Dívky v plamenech"]
["CZ15","Česká republika","ČASPV",null,null,"Třebíč","Pavouci"]
["CZ16","Česká republika","ČASPV",null,null,"Třebíč","Zbojnické historky"]
["CZ17","Česká republika","ČASPV",null,null,"Třebíč","Po práci zábava"]
["CZ18","Česká republika","ČASPV",null,null,"Moderní gymnastika Praha","Je Veux"]
["CZ19","Česká republika","ČASPV",null,null,"Senioři ČASPV","Brekekeke"]
["CZ20","Česká republika","ČOS","Valašská - Fr. Palackého","T. J. Sokol Valašské Meziříčí","TŠ Sokol Dance Las Perlitas","Mexické tance"]
["CZ21","Česká republika",null,null,"Speciální škola pro sluchově postižené HK","Divadlo beze slov","Děti ráje"]
["CZ22","Česká republika","ČOS","Jičínská - Bergrova","T. J. Sokol Jičín","Step team 9-10 let","Water cup"]
["CZ23","Česká republika","ČOS","Jičínská - Bergrova","T. J. Sokol Jičín","Step team 9-10 let","Punkerky"]
["CZ24","Česká republika","ČOS","Jana Podlipného","T. J. Sokol Praha - Libuš","Komorní ženský pěvecký sbor LIBUŠE","Sborový zpěv sokolských a vlasteneckých písní"]
["CZ25","Česká republika","ČOS","Orlická","T. J. Sokol Doudleby nad Orlicí","Floriteam","Babeta"]
["CZ26","Česká republika","ČOS","Plk. Švece","T. J. Sokol Martínkov","Martínek","Na bílý hoře"]
["CZ27","Česká republika","ČOS","Plk. Švece","T. J. Sokol Martínkov","Martínek","Měl Adam spoustu synů"]
["CZ28","Česká republika","ČOS","Plk. Švece","T. J. Sokol Martínkov","Martínek","Sedláci"]
["CZ29","Česká republika","ČOS","Podkrkonošská - Jiráskova","T. J. Sokol Hronov","Rozpustilé bábinky","Druhý dech"]
["CZ30","Česká republika","ČOS","Plk. Švece","T. J. Sokol Martínkov","Džbánek","Borověnka"]
["CZ31","Česká republika","ČOS","Slovácká","T. J. Sokol Velké Bílovice","T. J. Sokol Velké Bílovice","Kordula"]
["CZ32","Česká republika","ČOS","Podkrkonošská - Jiráskova","T. J. Sokol Hronov","Rozpustilé bábinky","Pekař"]
["CZ33","Česká republika","ČOS","Orlická","T. J. Sokol Doudleby nad Orlicí","Floriteam","Uklízečky"]
["CZ34","Česká republika","ČOS","Jungmannova","T. J. Sokol Dobříš","Seniorky Sokol Dobříš","Cvičení s gumou + Tak abyste to věděla"]
["CZ35","Česká republika","ČOS","Plk. Švece","T. J. Sokol Martínkov","Džbánek","Špacírka"]
["CZ36","Česká republika","ČOS","Plk. Švece","T. J. Sokol Martínkov","Džbánek","Naše žínky"]
["CZ37","Česká republika","ČOS","Jungmannova","T.J. Sokol Dobříš","Ropeskipping Sokol Dobříš","Rope skipping"]
["CZ38","Česká republika","ČOS","Jihočeská","T. J. Sokol Písek","TJ Sokol Písek","Kráska a zvíře"]
["CZ39","Česká republika","ČOS","Jihočeská","T. J. Sokol Písek","Five Fellas","Silová gymnastika"]
["CZ40","Česká republika","ČOS","Jana Podlipného","T. J. Sokol Královské Vinohrady","Oddíl moderní gymnastiky (úterní tým)","Moderní gymnastika (úterní tým)"]
["CZ41","Česká republika","ČOS","Jana Podlipného","T. J. Sokol Hlubočepy","Oddíl sportovní všestrannosti","Akrobacie – Loupežníci"]
["CZ42","Česká republika","ČOS","Jana Podlipného","T. J. Sokol Královské Vinohrady","Oddíl moderní gymnastiky (středeční tým)","Moderní gymnastika (středeční tým)"]
["CZ43","Česká republika","ČOS","Jana Podlipného",null,"T. J. Sokol Libeň a Sokol Vinohrady","Jing a jang"]
["D01","Germany",null,null,"Lužicki Srbi clemens.schoda@domovina.de","Serbska rejowanska skupina Smjerdźaca","Malá prezentace srbského folkloru"]
["DK01","Denmark",null,null,null,"NfS Vejle Spring Team","Remember me Name"]
["DK02","Denmark",null,null,"International Academy - Ollerup","Ollerup - Girls Team","Wave after wave"]
["DK03","Denmark",null,null,"International Academy - Ollerup","Ollerup - Girls Team","City trouble"]
["DK04","Denmark",null,null,"DGI Midtjylland","L2017 motion M/K","L2017 motion M/K"]
["DK05","Denmark","Bif-gymnastik",null,"Glad gymnastik m/k","Glad gymnastik m/k","Glad gymnastik m/k"]
["DK08","Denmark",null,null,"Gerlev Sports Academy","Gerlev Performance Team","Gerlev Dance and Parkour Performance"]
["DK09","Denmark","DGI",null,"Maribo Soellested","Team Vikings","Happy"]
["GR01","Greece",null,null,"Lycee Leonin Hellas","Lycee Leonin Hellas","Escape"]
["GR02","Greece",null,null,"Lycee Leonin Hellas","Lycee Leonin Hellas","Emotion"]
["MOD1",{"$nulls":4},"moderátor Tyršův dům","Zahájení Tyršák"]
["MOD2",{"$nulls":4},"moderátor Staroměstské náměstí","Zahájení Staroměstké náměstí"]
["MOD3",{"$nulls":4},"moderátor Malostranské náměstí","Zahájení Malostranské náměstí"]
["MOD4",{"$nulls":4},"moderátor OC Eden","Zahájení OC Eden"]
["P01","Portugal",null,null,"Ginarte","Dreamteam","Hip Hop"]
["PAR1",{"$nulls":4},"DJ Melen","DJ Melen blok 1"]
["PAR2",{"$nulls":4},"Tančírna","Tančírna"]
["PAR3",{"$nulls":4},"Stand-up comedy","Stand-up comedy"]
["PAR4",{"$nulls":4},"DJ Melen","DJ Melen blok 2"]
["PAR5",{"$nulls":4},"Divadelní improvizace","Divadelní improvizace"]
["PAR6",{"$nulls":4},"DJ Melen","DJ Melen blok 3"]
["PRU1",{"$nulls":4},"Městská hudba Františka Kmocha Kolín","Sokolské pochody"]
["RCH01","Chile",null,null,null,"Villa san Bernardo","Písně a tance z Chile"]
["RU01","Russia",null,null,"Ariadna","Ariadna","Flying balls"]
["RU02","Russia",null,null,"Kirovets - Narvskaia zastava","Kirovets - Narvskaia zastava","Glory to a woman"]
["RU03","Russia",null,null,"Ariadna","Ariadna","Presto Agitato"]
["RU04","Russia",null,null,"Kirovets - Narvskaia zastava","Kirovets - Narvskaia zastava","Sex Bomb"]
["SK01","Slovenská republika","Východoslovenská župa Jána Kollára Vranov nad Topľou",null,"SOKOL SOŠ Trebišov a SOKOL Vranov nad Topľou","SOKOL SOŠ Trebišov a SOKOL Vranov nad Topľou","Mladé Slovensko"]
["SK02","Slovenská republika","Považská sokolská župa",null,"Olympia při OK Prievidza","Olympia při OK Prievidza","Roztancované okamihy"]
["SK03","Slovenská republika","Považská sokolská župa",null,"Olympia při OK Prievidza","Olympia při OK Prievidza","Jabĺčko"]
["SLO01","Slovenia",null,null,"Telovadno društvo Sokol Brežice","Telovadno društvo Sokol Brežice","Le naprej! Keep on!"]
["SLO02","Slovenia","Ljubljana, Slovenija",null,"Športno društvo Sokol Bežigrad","Estelle","How to train your dragon"]
["SLO03","Slovenia","Ljubljana, Slovenija",null,"Športno društvo Sokol Bežigrad","Barbara Krašovec","Hallelujah"]
["SLO04","Slovenia",null,null,"Sokol Bežigrad & Sokol Brežice","Sokol Bežigrad & Sokol Brežice 1","Trampet jumps"]
["SLO05","Slovenia","Ljubljana, Slovenija",null,"Športno društvo Sokol Bežigrad","Gymnastic veterans","Performance of gymnastic veterans on parallel bars"]
["SLO06","Slovenia",null,null,"Športno društvo Sokol Bežigrad","Sokol Bežigrad & Sokol Brežice 2","Bežigrajska sokolska vaja  Bežigrad sokol exercise"]
["SLO07","Slovenia",null,null,"Metliški Sokoli","Metliški Sokoli","Stick routine Ponosni nase"]
["SLO08","Slovenia",null,null,"Metliški Sokoli","Metliški Sokoli","Stick routine accompained by Radetzky March"]
["SLO09","Slovenia",null,null,"Metliški Sokoli","Metliški Sokoli","Two formations"]
["SLO10","Slovenia","Bled, Slovenija",null,"Športno društvo Moj klub","Moj klub ballet","Esmeralda and friends"]
["SLO11","Slovenia","Ljubljana, Slovenija",null,"Športno društvo Sokol Bežigrad","Estelle","The Only One"]
["SLO12","Slovenia","Bled, Slovenija",null,"Športno društvo Moj klub","Pole dance","Becoming legends"]
["SRB01","Serbia","Serbian Sokol Federation",null,"Sokol Unit Vojvodina Novi Sad","DANS enseble","Focus change retrograde"]
["SRB03","Serbia","Serbian Sokol Federation",null,"Sokol Unit Vojvodina","Aerobic gymnastics 1","The Race"]
["SRB04","Serbia","Serbian Sokol Federation",null,"Sokol Unit Vojvodina","Aerobic gymnastics 2","Single ladies"]
["SRB05","Serbia","Serbian Sokol Federation",null,"Sokol unit \"Belgrade\" Matica","Zero gravity","Zero gravity acrobatics"]
["SRB06","Serbia","Serbian Sokol Federation",null,"Sokol Unit Batajnica","Sokol Unit Batajnica","The rhythm of youth"]
["SRB07","Serbia","Serbian Sokol Federation",null,"Gimnastičko ritmički soko klub,,Ru rit ma\"","GYM-STARS","Explosive I"]
["SRB08","Serbia","Serbian Sokol Federation",null,"Gimnastičko ritmički soko klub,,Ru rit ma\"","GYM-STARS","Explosive II"]
["SRB10","Serbia","Serbian Sokol Federation",null,"Sokol gymnastic club \"ES-EM\"","Never alone","Good vibes only"]
["SRB11","Serbia","Serbian Sokol Federation",null,"Sokol gymnastic club \"ES-EM\"","Sremice","My music my amusement"]
["SRB12","Serbia","Serbian Sokol Federation",null,"Sokol gymnastic club \"ES-EM\"","Sremice","First flight"]
["SRB13","Serbia","Serbian Sokol Federation",null,"Sokol Unit Batajnica","Sokol Unit Batajnica","Wonderful movements"]
["SRB14","Serbia","Serbian Sokol Federation",null,"Sokol unit \"Belgrade\" Matica","Zero gravity","Zero gravity minitramp"]
["USA01","United States of America",null,null,"American Sokol","American Sokol","Sokol Baby Yeah!"]
["WS1","Denmark",null,null,"International Academy - Ollerup","Ollerup - Girls Team","Workshop rytmická gymnastika"]
["WS2","Denmark",null,null,"Gerlev Sports Academy","Gerlev Performance Team","Street dance workshop"]
["WS3","Denmark",null,null,"Gerlev Sports Academy","Gerlev Performance Team","Parkour workshop"]
["WS4",{"$nulls":4},"Helena Peer","Workshop krokovka flashmob"]
["WS5",{"$nulls":4},"Helena Peer","Workshop fitjazz"]
["WS6",{"$nulls":4},"Helena Peer","Workshop Salsa"]
["WS7",{"$nulls":4},"Helena Peer","Workshop Bachata"]
["WS8",{"$nulls":4},"Jitka Hilgert","Workshop jóga 1"]
["WS9",{"$nulls":4},"Jitka Hilgert","Workshop jóga 2"]
["WS10",{"$nulls":4},"Jitka Hilgert","Workshop jóga 3"]

{"sheet":"Contol List","index":7,"n_rows":218,"n_cols":9,"rows_kept":218,"cut":false,"hidden":true,"merged":[]}
[]
["2018-07-02","Brasil","BR01","State University of Campinas - UNICAMP","Livia Pasqua","Capoeira  ",4.0,2.0]
["2018-07-02","Brasil","BR01","State University of Campinas - UNICAMP","Livia Pasqua","Capoeira  ",18.0,2.0]
["2018-07-02","Brasil","BR02","State University of Campinas - Unicamp","Grupo Ginastico Unicamp Ânima","Flutú  ",24.0,4.0]
["2018-07-04","Brasil","BR02","State University of Campinas - Unicamp","Grupo Ginastico Unicamp Ânima","Flutú  ",1.0,4.0]
["2018-07-03","Brasil","BR02","State University of Campinas - Unicamp","Grupo Ginastico Unicamp Ânima","Flutú  ",20.0,4.0]
["2018-07-04","Belarus","BY01","Belarussian federation of general gymnastic","Yana Lukavets and Aliaksandra Yakushava","In the shirt  ",8.0,3.0]
["2018-07-03","Belarus","BY01","Belarussian federation of general gymnastic","Yana Lukavets and Aliaksandra Yakushava","In the shirt  ",5.0,3.0]
["2018-07-01","Česká republika","CZ01","Sokolská stráž","Sokolská stráž","Republika  ",1.0,3.0]
["2018-07-04","Česká republika","CZ01","Sokolská stráž","Sokolská stráž","Republika  ",17.0,3.0]
["2018-07-01","Česká republika","CZ02","T. J. Sokol Kunvald","T.J. Sokol Kunvald","Sokolské retro  ",6.0,7.0]
["2018-07-02","Česká republika","CZ02","T. J. Sokol Kunvald","T.J. Sokol Kunvald","Sokolské retro  ",7.0,7.0]
["2018-07-02","Česká republika","CZ02","T. J. Sokol Kunvald","T.J. Sokol Kunvald","Sokolské retro  ",7.0,7.0]
["2018-07-01","Czech Republic","CZ03","Sokolská Župa Barákova","Inspirace hudbou","Vivat Vivaldi  ",4.0,7.0]
["2018-07-01","Česká republika","CZ03","Sokolská Župa Barákova","Inspirace hudbou","Vivat Vivaldi  ",19.0,7.0]
["2018-07-03","Česká republika","CZ04","T.J. Sokol Opava","Sokol Opava","Pradleny  ",1.0,3.0]
["2018-07-02","Česká republika","CZ04","T.J. Sokol Opava","Sokol Opava","Pradleny  ",2.0,3.0]
["2018-07-04","Česká republika","CZ04","T.J. Sokol Opava","Sokol Opava","Pradleny  ",1.0,3.0]
["2018-07-03","Česká republika","CZ05","ASPV KHK","Vltava - cvičenky ASPV KHK","Vltava  ",3.0,3.0]
["2018-07-02","Česká republika","CZ05","ASPV KHK","Vltava - cvičenky ASPV KHK","Vltava  ",5.0,3.0]
["2018-07-04","Česká republika","CZ05","ASPV KHK","Vltava - cvičenky ASPV KHK","Vltava  ",3.0,3.0]
["2018-07-03","Česká republika","CZ06","T. J. Sokol Rychvald","Ritmo - lady","Baby z ABBY  ",5.0,3.0]
["2018-07-02","Česká republika","CZ06","T. J. Sokol Rychvald","Ritmo - lady","Baby z ABBY  ",7.0,3.0]
["2018-07-04","Česká republika","CZ06","T. J. Sokol Rychvald","Ritmo - lady","Baby z ABBY  ",8.0,3.0]
["2018-07-02","Česká republika","CZ07","T. J. Sokol Doudleby nad Orlicí","Floriteam","Když nemůžeš tak přidej  ",2.0,3.0]
["2018-07-03","Česká republika","CZ07","T. J. Sokol Doudleby nad Orlicí","Floriteam","Když nemůžeš tak přidej  ",18.0,3.0]
["2018-07-04","Česká republika","CZ07","T. J. Sokol Doudleby nad Orlicí","Floriteam","Když nemůžeš tak přidej  ",8.0,3.0]
["2018-07-03","Česká republika","CZ08","TJ DIOSS Nýřany","TJ DIOSS Nýřany","Romance  ",7.0,3.0]
["2018-07-02","Česká republika","CZ08","TJ DIOSS Nýřany","TJ DIOSS Nýřany","Romance  ",13.0,3.0]
["2018-07-04","Česká republika","CZ34","T. J. Sokol Dobříš","Seniorky Sokol Dobříš","Cvičení s gumou + Tak abyste to věděla  ",15.0,5.0]
["2018-07-03","Česká republika","CZ09","T.J. Sokol Opava","Sokol Opava","Láska a závist  ",9.0,3.0]
["2018-07-04","Česká republika","CZ09","T.J. Sokol Opava","Sokol Opava","Láska a závist  ",20.0,3.0]
["2018-07-02","Česká republika","CZ09","T.J. Sokol Opava","Sokol Opava","Láska a závist  ",15.0,3.0]
["2018-07-03","Česká republika","CZ10","T. J. Sokol Valašské Meziříčí","Lopika","Koloběh života  ",14.0,5.0]
["2018-07-02","Česká republika","CZ10","T. J. Sokol Valašské Meziříčí","Lopika","Koloběh života  ",28.0,5.0]
["2018-07-04","Česká republika","CZ10","T. J. Sokol Valašské Meziříčí","Lopika","Koloběh života  ",9.0,5.0]
["2018-07-02","Česká republika","CZ11","T. J. Sokol Huntířov nad Jizerou","Wellnes team Sokol Huntířov nad Jizerou","Step aerobik - Flashdance  ",26.0,2.0]
["2018-07-04","Česká republika","CZ11","T. J. Sokol Huntířov nad Jizerou","Wellnes team Sokol Huntířov nad Jizerou","Step aerobik - Flashdance  ",16.0,2.0]
["2018-07-02","Česká republika","CZ12","T. J. Sokol Dvůr Králové nad Labem","Teamgym Junior III","Teamgymová pódiová skladba  ",1.0,3.0]
["2018-07-04","Česká republika","CZ12","T. J. Sokol Dvůr Králové nad Labem","Teamgym Junior III","Teamgymová pódiová skladba  ",18.0,3.0]
["2018-07-03","Česká republika","CZ12","T. J. Sokol Dvůr Králové nad Labem","Teamgym Junior III","Teamgymová pódiová skladba  ",1.0,3.0]
["2018-07-02","Česká republika","CZ13","T. J. Sokol Jičín","Step team 9-10 let","Rio  ",7.0,2.0]
["2018-07-04","Česká republika","CZ13","T. J. Sokol Jičín","Step team 9-10 let","Rio  ",3.0,2.0]
["2018-07-03","Česká republika","CZ13","T. J. Sokol Jičín","Step team 9-10 let","Rio  ",6.0,2.0]
["2018-07-02","Česká republika","CZ14","T. J. Sokol Jičín","Step team 9-10 let","Dívky v plamenech  ",11.0,2.0]
["2018-07-04","Česká republika","CZ14","T. J. Sokol Jičín","Step team 9-10 let","Dívky v plamenech  ",9.0,2.0]
["2018-07-03","Česká republika","CZ14","T. J. Sokol Jičín","Step team 9-10 let","Dívky v plamenech  ",9.0,2.0]
["2018-07-02","Česká republika","CZ15","Česká asociace sportu pro všechny","Třebíč","Pavouci  ",14.0,2.0]
["2018-07-04","Česká republika","CZ15","Česká asociace sportu pro všechny","Třebíč","Pavouci  ",12.0,2.0]
["2018-07-03","Česká republika","CZ15","Česká asociace sportu pro všechny","Třebíč","Pavouci  ",11.0,2.0]
["2018-07-02","Česká republika","CZ16","Česká asociace sportu pro všechny","Třebíč","Zbojnické historky  ",15.0,3.0]
["2018-07-04","Česká republika","CZ16","Česká asociace sportu pro všechny","Třebíč","Zbojnické historky  ",13.0,3.0]
["2018-07-03","Česká republika","CZ16","Česká asociace sportu pro všechny","Třebíč","Zbojnické historky  ",12.0,3.0]
["2018-07-02","Česká republika","CZ17","Česká asociace sportu pro všechny","Třebíč","Po práci zábava  ",16.0,2.0]
["2018-07-04","Česká republika","CZ17","Česká asociace sportu pro všechny","Třebíč","Po práci zábava  ",14.0,2.0]
["2018-07-03","Česká republika","CZ17","Česká asociace sportu pro všechny","Třebíč","Po práci zábava  ",13.0,2.0]
["2018-07-02","Česká republika","CZ18","Česká asociace sportu pro všechny","Moderní gymnastika Praha","Je Veux  ",17.0,2.0]
["2018-07-04","Česká republika","CZ18","Česká asociace sportu pro všechny","Moderní gymnastika Praha","Je Veux  ",15.0,2.0]
["2018-07-03","Česká republika","CZ18","Česká asociace sportu pro všechny","Moderní gymnastika Praha","Je Veux  ",14.0,2.0]
["2018-07-02","Česká republika","CZ19","Česká asociace sportu pro všechny","Senioři ČASPV","Brekekeke  ",18.0,6.0]
["2018-07-04","Česká republika","CZ19","Česká asociace sportu pro všechny","Senioři ČASPV","Brekekeke  ",16.0,6.0]
["2018-07-03","Česká republika","CZ19","Česká asociace sportu pro všechny","Senioři ČASPV","Brekekeke  ",15.0,6.0]
["2018-07-02","Česká republika","CZ20","T. J. Sokol Valašské Meziříčí","TŠ Sokol Dance Las Perlitas","Mexické tance  ",12.0,7.0]
["2018-07-03","Česká republika","CZ20","T. J. Sokol Valašské Meziříčí","TŠ Sokol Dance Las Perlitas","Mexické tance  ",17.0,7.0]
["2018-07-04","Česká republika","CZ20","T. J. Sokol Valašské Meziříčí","TŠ Sokol Dance Las Perlitas","Mexické tance  ",13.0,7.0]
["2018-07-02","Česká republika","CZ21","Speciální škola pro sluchově postižené HK","Divadlo beze slov","Děti ráje  ",22.0,5.0]
["2018-07-03","Česká republika","CZ21","Speciální škola pro sluchově postižené HK","Divadlo beze slov","Děti ráje  ",18.0,5.0]
["2018-07-02","Česká republika","CZ22","T. J. Sokol Jičín","Step team 9-10 let","Water cup  ",25.0,2.0]
["2018-07-04","Česká republika","CZ22","T. J. Sokol Jičín","Step team 9-10 let","Water cup  ",5.0,2.0]
["2018-07-03","Česká republika","CZ22","T. J. Sokol Jičín","Step team 9-10 let","Water cup  ",21.0,2.0]
["2018-07-02","Česká republika","CZ23","T. J. Sokol Jičín","Step team 9-10 let","Punkerky  ",27.0,2.0]
["2018-07-04","Česká republika","CZ23","T. J. Sokol Jičín","Step team 9-10 let","Punkerky  ",7.0,2.0]
["2018-07-03","Česká republika","CZ23","T. J. Sokol Jičín","Step team 9-10 let","Punkerky  ",23.0,2.0]
["2018-07-04","Česká republika","CZ24","T. J. Sokol Praha - Libuš","Komorní ženský pěvecký sbor LIBUŠE","Sborový zpěv sokolských a vlasteneckých písní  ",2.0,15.0]
["2018-07-04","Česká republika","CZ24","T. J. Sokol Praha - Libuš","Komorní ženský pěvecký sbor LIBUŠE","Sborový zpěv sokolských a vlasteneckých písní  ",11.0,15.0]
["2018-07-02","Česká republika","CZ25","T. J. Sokol Doudleby nad Orlicí","Floriteam","Babeta  ",10.0,4.0]
["2018-07-03","Česká republika","CZ25","T. J. Sokol Doudleby nad Orlicí","Floriteam","Babeta  ",11.0,4.0]
["2018-07-04","Česká republika","CZ25","T. J. Sokol Doudleby nad Orlicí","Floriteam","Babeta  ",12.0,4.0]
["2018-07-02","Česká republika","CZ26","T. J. Sokol Martínkov","Martínek","Na bílý hoře  ",3.0,5.0]
["2018-07-03","Česká republika","CZ26","T. J. Sokol Martínkov","Martínek","Na bílý hoře  ",3.0,5.0]
["2018-07-04","Česká republika","CZ26","T. J. Sokol Martínkov","Martínek","Na bílý hoře  ",3.0,5.0]
["2018-07-02","Česká republika","CZ27","T. J. Sokol Martínkov","Martínek","Měl Adam spoustu synů  ",4.0,3.0]
["2018-07-03","Česká republika","CZ27","T. J. Sokol Martínkov","Martínek","Měl Adam spoustu synů  ",4.0,3.0]
["2018-07-04","Česká republika","CZ27","T. J. Sokol Martínkov","Martínek","Měl Adam spoustu synů  ",4.0,3.0]
["2018-07-02","Česká republika","CZ28","T. J. Sokol Martínkov","Martínek","Sedláci  ",5.0,5.0]
["2018-07-03","Česká republika","CZ28","T. J. Sokol Martínkov","Martínek","Sedláci  ",6.0,5.0]
["2018-07-04","Česká republika","CZ28","T. J. Sokol Martínkov","Martínek","Sedláci  ",5.0,5.0]
["2018-07-02","Česká republika","CZ29","T. J. Sokol Hronov","Rozpustilé bábinky","Druhý dech  ",24.0,3.0]
["2018-07-02","Česká republika","CZ29","T. J. Sokol Hronov","Rozpustilé bábinky","Pekař  ",27.0,3.0]
["2018-07-03","Česká republika","CZ29","T. J. Sokol Hronov","Rozpustilé bábinky","Druhý dech  ",7.0,3.0]
["2018-07-02","Česká republika","CZ30","T. J. Sokol Martínkov","Džbánek","Borověnka  ",7.0,5.0]
["2018-07-03","Česká republika","CZ30","T. J. Sokol Martínkov","Džbánek","Borověnka  ",9.0,5.0]
["2018-07-04","Česká republika","CZ30","T. J. Sokol Martínkov","Džbánek","Borověnka  ",7.0,5.0]
["2018-07-02","Česká republika","CZ31","T. J. Sokol Velké Bílovice","T. J. Sokol Velké Bílovice","Kordula  ",8.0,12.0]
["2018-07-03","Česká republika","CZ31","T. J. Sokol Velké Bílovice","T. J. Sokol Velké Bílovice","Kordula  ",13.0,12.0]
["2018-07-04","Česká republika","CZ31","T. J. Sokol Velké Bílovice","T. J. Sokol Velké Bílovice","Kordula  ",9.0,12.0]
["2018-07-03","Česká republika","CZ32","T. J. Sokol Hronov","Rozpustilé bábinky","Pekař  ",12.0,3.0]
["2018-07-02","Česká republika","CZ33","T. J. Sokol Doudleby nad Orlicí","Floriteam","Uklízečky  ",13.0,4.0]
["2018-07-03","Česká republika","CZ33","T. J. Sokol Doudleby nad Orlicí","Floriteam","Uklízečky  ",15.0,4.0]
["2018-07-04","Česká republika","CZ33","T. J. Sokol Doudleby nad Orlicí","Floriteam","Uklízečky  ",14.0,4.0]
["2018-07-02","Česká republika","CZ34","T. J. Sokol Dobříš","Seniorky Sokol Dobříš","Cvičení s gumou + Tak abyste to věděla  ",11.0,5.0]
["2018-07-03","Česká republika","CZ34","T. J. Sokol Dobříš","Seniorky Sokol Dobříš","Cvičení s gumou + Tak abyste to věděla  ",16.0,5.0]
["2018-07-02","Česká republika","CZ35","T. J. Sokol Martínkov","Džbánek","Špacírka  ",6.0,4.0]
["2018-07-03","Česká republika","CZ35","T. J. Sokol Martínkov","Džbánek","Špacírka  ",10.0,4.0]
["2018-07-04","Česká republika","CZ35","T. J. Sokol Martínkov","Džbánek","Špacírka  ",6.0,4.0]
["2018-07-02","Česká republika","CZ36","T. J. Sokol Martínkov","Džbánek","Naše žínky  ",9.0,3.0]
["2018-07-03","Česká republika","CZ36","T. J. Sokol Martínkov","Džbánek","Naše žínky  ",14.0,3.0]
["2018-07-04","Česká republika","CZ36","T. J. Sokol Martínkov","Džbánek","Naše žínky  ",10.0,3.0]
["2018-07-02","Česká republika","CZ37","T. J. Sokol Dobříš","Sokol Dobříš","Rope skipping  ",20.0,2.0,"ČEKÁME NA POTVRZENÍ"]
["2018-07-03","Česká republika","CZ37","T. J. Sokol Dobříš","Rope skipping","Rope skipping  ",17.0,2.0,"ČEKÁME NA POTVRZENÍ"]
["2018-07-04","Česká republika","CZ38","T. J. Sokol Písek","T. J. Sokol Písek","Kráska a zvíře  ",2.0,3.0]
["2018-07-04","Česká republika","CZ38","T. J. Sokol Písek","T. J. Sokol Písek","Kráska a zvíře  ",10.0,3.0]
["2018-07-02","Česká republika","CZ38","T. J. Sokol Písek","T. J. Sokol Písek","Kráska a zvíře  ",1.0,3.0]
["2018-07-03","Germany","D01","Lužicki Srbi","Serbska rejowanska skupina Smjerdźaca","Malá prezentace srbského folkloru  ",19.0,15.0]
["2018-07-04","Germany","D01","Lužicki Srbi ","Serbska rejowanska skupina Smjerdźaca","Malá prezentace srbského folkloru  ",22.0,15.0]
["2018-07-01","Germany","D01","Lužicki Srbi ","Serbska rejowanska skupina Smjerdźaca","Malá prezentace srbského folkloru  ",2.0,15.0]
["2018-07-01","Denmark","DK01","NfS Vejle Spring Team","NfS Vejle Spring Team","Remember me Name  ",17.0,12.0]
["2018-07-02","Denmark","DK01","NfS Vejle Spring Team","NfS Vejle Spring Team","Remember me Name  ",16.0,12.0]
["2018-07-01","Denmark","DK02","International Academy - Ollerup","Ollerup - Girls Team","Wave after wave  ",7.0,12.0]
["2018-07-01","Denmark","DK02","International Academy - Ollerup","Ollerup - Girls Team","City trouble  ",8.0,7.0]
["2018-07-02","Denmark","DK02","International Academy - Ollerup","Ollerup - Girls Team","Wave after wave  ",8.0,12.0]
["2018-07-03","Denmark","DK02","International Academy - Ollerup","Ollerup - Girls Team","Wave after wave  ",8.0,12.0]
["2018-07-02","Denmark","DK03","International Academy - Ollerup","Ollerup - Girls Team","City trouble  ",9.0,7.0]
["2018-07-03","Denmark","DK03","International Academy - Ollerup","Ollerup - Girls Team","City trouble  ",9.0,7.0]
["2018-07-03","Denmark","DK04","DGI Midtjylland","L2017 motion M/K","L2017 motion M/K  ",2.0,10.0]
["2018-07-04","Denmark","DK04","DGI Midtjylland","L2017 motion M/K","L2017 motion M/K  ",19.0,10.0]
["2018-07-02","Denmark","DK04","DGI Midtjylland","L2017 motion M/K","L2017 motion M/K  ",20.0,10.0]
["2018-07-03","Denmark","DK05","Glad gymnastik m/k","Glad gymnastik m/k","Glad gymnastik m/k  ",6.0,10.0]
["2018-07-04","Denmark","DK05","Glad gymnastik m/k","Glad gymnastik m/k","Glad gymnastik m/k  ",21.0,10.0]
["2018-07-02","Denmark","DK05","Glad gymnastik m/k","Glad gymnastik m/k","Glad gymnastik m/k  ",8.0,10.0]
["2018-07-01","Denmark","DK08","Gerlev Sports Academy","Gerlev Performance Team","Gerlev Dance and Parkour Performance  ",18.0,20.0]
["2018-07-02","Denmark","DK08","Gerlev Sports Academy","Gerlev Performance Team","Gerlev Dance and Parkour Performance  ",13.0,20.0]
["2018-07-02","Greece","GR01","Lycee Leonin Hellas","Lycee Leonin Hellas","Escape  ",23.0,5.0]
["2018-07-03","Greece","GR01","Lycee Leonin Hellas","Lycee Leonin Hellas","Escape  ",19.0,5.0]
["2018-07-02","Greece","GR02","Lycee Leonin Hellas","Lycee Leonin Hellas","Emotion  ",26.0,5.0]
["2018-07-03","Greece","GR02","Lycee Leonin Hellas","Lycee Leonin Hellas","Emotion  ",22.0,5.0]
["2018-07-04","Portugal","P01","Ginarte","Dreamteam","Hip Hop  ",4.0,5.0]
["2018-07-03","Portugal","P01","Ginarte","Dreamteam","Hip Hop  ",1.0,5.0]
["2018-07-02","Poland","PL01",null,null,"Poláci  ",19.0,10.0,"WAITING FOR INFO"]
["2018-07-03","Poland","PL01",null,null,"Poláci  ",16.0,10.0,"WAITING FOR INFO"]
["2018-07-03","Chile","RCH01","Villa san Bernardo","Villa san Bernardo","Písně a tance ze středu severu a jihu Chile  ",8.0,30.0]
["2018-07-04","Chile","RCH01","Villa san Bernardo","Villa san Bernardo","Písně a tance ze středu severu a jihu Chile  ",1.0,30.0]
["2018-07-02","Russia","RU01","Ariadna","Ariadna","Flying balls  ",4.0,2.0]
["2018-07-03","Russia","RU01","Ariadna","Ariadna","Flying balls  ",4.0,2.0]
["2018-07-03","Russia","RU02","Kirovets - Narvskaia zastava","Kirovets - Narvskaia zastava","Glory to a woman  ",4.0,4.0]
["2018-07-02","Russia","RU02","Kirovets - Narvskaia zastava","Kirovets - Narvskaia zastava","Glory to a woman  ",22.0,4.0]
["2018-07-01","Slovakia ","SK01","SOKOL SOŠ Trebišov a SOKOL Vranov nad Topľou","SOKOL SOŠ Trebišov a SOKOL Vranov nad Topľou","Mladé Slovensko  ",16.0,10.0]
["2018-07-02","Slovenská republika","SK01","SOKOL SOŠ Trebišov a SOKOL Vranov nad Topľou","SOKOL SOŠ Trebišov a SOKOL Vranov nad Topľou","Mladé Slovensko  ",8.0,10.0]
["2018-07-03","Slovenská republika","SK02","Olympia při OK Prievidza","Olympia při OK Prievidza","Roztancované okamihy  ",16.0,4.0]
["2018-07-02","Slovenská republika","SK02","Olympia při OK Prievidza","Olympia při OK Prievidza","Roztancované okamihy  ",3.0,4.0]
["2018-07-04","Slovenská republika","SK02","Olympia při OK Prievidza","Olympia při OK Prievidza","Roztancované okamihy  ",7.0,4.0]
["2018-07-03","Slovenská republika","SK03","Olympia při OK Prievidza","Olympia při OK Prievidza","Jabĺčko  ",18.0,4.0]
["2018-07-02","Slovenská republika","SK03","Olympia při OK Prievidza","Olympia při OK Prievidza","Jabĺčko  ",6.0,4.0]
["2018-07-04","Slovenská republika","SK03","Olympia při OK Prievidza","Olympia při OK Prievidza","Jabĺčko  ",12.0,4.0]
["2018-07-01","Slovenia","SLO01","Telovadno društvo Sokol Brežice","Telovadno društvo Sokol Brežice","Le naprej! / Keep on!  ",9.0,4.0]
["2018-07-02","Slovenia","SLO01","Telovadno društvo Sokol Brežice","Telovadno društvo Sokol Brežice","Le naprej! / Keep on!  ",10.0,4.0]
["2018-07-01","Slovenia","SLO02","Športno društvo Sokol Bežigrad","Estelle","How to train your dragon  ",10.0,3.0]
["2018-07-02","Slovenia","SLO02","Športno društvo Sokol Bežigrad","Estelle","How to train your dragon  ",11.0,3.0]
["2018-07-02","Slovenia","SLO02","Športno društvo Sokol Bežigrad","Estelle","How to train your dragon  ",11.0,3.0]
["2018-07-01","Slovenia","SLO03","Športno društvo Sokol Bežigrad","Barbara Krašovec","Hallelujah  ",12.0,2.0]
["2018-07-02","Slovenia","SLO03","Športno društvo Sokol Bežigrad","Barbara Krašovec","Hallelujah  ",12.0,2.0]
["2018-07-02","Slovenia","SLO03","Športno društvo Sokol Bežigrad","Barbara Krašovec","Hallelujah  ",12.0,2.0]
["2018-07-01","Slovenia","SLO04","Sokol Bežigrad & Sokol Brežice","Sokol Bežigrad & Sokol Brežice 1","Trampet jumps  ",13.0,3.0]
["2018-07-02","Slovenia","SLO04","Sokol Bežigrad & Sokol Brežice","Sokol Bežigrad & Sokol Brežice 1","Trampet jumps  ",13.0,3.0]
["2018-07-01","Slovenia","SLO05","Športno društvo Sokol Bežigrad","Gymnastic veterans","Performance of gymnastic veterans on parallel bars  ",14.0,6.0]
["2018-07-02","Slovenia","SLO05","Športno društvo Sokol Bežigrad","Gymnastic veterans","Performance of gymnastic veterans on parallel bars  ",14.0,6.0]
["2018-07-01","Slovenia","SLO06","Športno društvo Sokol Bežigrad","Sokol Bežigrad & Sokol Brežice 2","Bežigrajska sokolska vaja / Bežigrad sokol exercise  ",15.0,3.0]
["2018-07-02","Slovenia","SLO06","Športno društvo Sokol Bežigrad","Sokol Bežigrad & Sokol Brežice 2","Bežigrajska sokolska vaja / Bežigrad sokol exercise  ",15.0,3.0]
["2018-07-02","Slovenia","SLO07","Metliški Sokoli","Metliški Sokoli","Stick routine Ponosni nase  ",1.0,4.0]
["2018-07-02","Slovenia","SLO07","Metliški Sokoli","Metliški Sokoli","Stick routine Ponosni nase  ",17.0,4.0]
["2018-07-02","Slovenia","SLO08","Metliški Sokoli","Metliški Sokoli","Stick routine accompained by Radetzky March  ",2.0,3.0]
["2018-07-02","Slovenia","SLO08","Metliški Sokoli","Metliški Sokoli","Stick routine accompained by Radetzky March  ",18.0,3.0]
["2018-07-02","Slovenia","SLO09","Metliški Sokoli","Metliški Sokoli","Two formations  ",3.0,1.0]
["2018-07-02","Slovenia","SLO09","Metliški Sokoli","Metliški Sokoli","Two formations  ",19.0,1.0]
["2018-07-04","Slovenia","SLO10","Športno društvo Moj klub","Moj klub ballet","Esmeralda and friends  ",6.0,3.0]
["2018-07-03","Slovenia","SLO10","Športno društvo Moj klub","Moj klub ballet","Esmeralda and friends  ",2.0,3.0]
["2018-07-01","Slovenia","SLO11","Športno društvo Sokol Bežigrad","Estelle","The Only One  ",11.0,3.0]
["2018-07-02","Slovenia","SLO11","Športno društvo Sokol Bežigrad","Estelle","The Only One  ",11.0,3.0]
["2018-07-04","Slovenia","SLO11","Športno društvo Sokol Bežigrad","Estelle","The Only One  ",11.0,3.0]
["2018-07-02","Slovenia","SLO11","Športno društvo Sokol Bežigrad","Estelle","The Only One  ",10.0,3.0]
["2018-07-02","Slovenia","SLO12","Športno društvo Moj klub","Pole dance","Becoming legends  ",1.0,4.0]
["2018-07-02","Serbia","SRB01","Sokol Unit Vojvodina","DANS eseble","Crossing paths  ",2.0,4.0]
["2018-07-03","Serbia","SRB01","Sokol Unit Vojvodina","DANS eseble","Crossing paths  ",2.0,4.0]
["2018-07-02","Serbia","SRB02","Sokol Unit Vojvodina","Aerobic gymnastics 1","Paganini in Brazil  ",3.0,3.0]
["2018-07-03","Serbia","SRB02","Sokol Unit Vojvodina","Aerobic gymnastics 1","Paganini in Brazil  ",3.0,3.0]
["2018-07-02","Serbia","SRB03","Sokol Unit Vojvodina","Aerobic gymnastics 1","The Race  ",6.0,3.0]
["2018-07-03","Serbia","SRB03","Sokol Unit Vojvodina","Aerobic gymnastics 1","The Race  ",5.0,3.0]
["2018-07-02","Serbia","SRB04","Sokol Unit Vojvodina","Aerobic gymnastics 2","Single ladies  ",5.0,1.0]
["2018-07-03","Serbia","SRB04","Sokol Unit Vojvodina","Aerobic gymnastics 2","Single ladies  ",7.0,1.0]
["2018-07-02","Serbia","SRB05","Sokol unit \"Belgrade\" Matica","Zero gravity","Zero gravity acrobatics  ",10.0,2.0]
["2018-07-03","Serbia","SRB05","Sokol unit \"Belgrade\" Matica","Zero gravity","Zero gravity acrobatics  ",8.0,2.0]
["2018-07-02","Serbia","SRB06","Sokol Unit Batajnica","Sokol Unit Batajnica","The rhythm of youth  ",12.0,3.0]
["2018-07-03","Serbia","SRB06","Sokol Unit Batajnica","Sokol Unit Batajnica","The rhythm of youth  ",10.0,3.0]
["2018-07-03","Serbia","SRB07","Gimnastičko ritmički soko klub,,Ru rit ma\"","GYM-STARS","Explosive I  ",8.0,4.0]
["2018-07-02","Serbia","SRB07","Gimnastičko ritmički soko klub,,Ru rit ma\"","GYM-STARS","Explosive I  ",14.0,4.0]
["2018-07-04","Serbia","SRB07","Gimnastičko ritmički soko klub,,Ru rit ma\"","GYM-STARS","Explosive I  ",2.0,4.0]
["2018-07-03","Serbia","SRB08","Gimnastičko ritmički soko klub,,Ru rit ma\"","GYM-STARS","Explosive II  ",10.0,3.0]
["2018-07-02","Serbia","SRB08","Gimnastičko ritmički soko klub,,Ru rit ma\"","GYM-STARS","Explosive II  ",16.0,3.0]
["2018-07-04","Serbia","SRB08","Gimnastičko ritmički soko klub,,Ru rit ma\"","GYM-STARS","Explosive II  ",4.0,3.0]
["2018-07-03","Serbia","SRB09","Sokol Unit Batajnica","Sokol Unit Batajnica","Follow me  ",11.0,3.0]
["2018-07-02","Serbia","SRB09","Sokol Unit Batajnica","Sokol Unit Batajnica","Follow me  ",17.0,3.0]
["2018-07-04","Serbia","SRB09","Sokol Unit Batajnica","Sokol Unit Batajnica","Follow me  ",5.0,3.0]
["2018-07-03","Serbia","SRB10","Sokol gymnastic club \"ES-EM\"","Never alone","Good vibes only  ",12.0,3.0]
["2018-07-02","Serbia","SRB10","Sokol gymnastic club \"ES-EM\"","Never alone","Good vibes only  ",19.0,3.0]
["2018-07-04","Serbia","SRB10","Sokol gymnastic club \"ES-EM\"","Never alone","Good vibes only  ",6.0,3.0]
["2018-07-03","Serbia","SRB11","Sokol gymnastic club \"ES-EM\"","Sremice","My music my amusement  ",15.0,5.0]
["2018-07-02","Serbia","SRB11","Sokol gymnastic club \"ES-EM\"","Sremice","My music my amusement  ",21.0,5.0]
["2018-07-04","Serbia","SRB11","Sokol gymnastic club \"ES-EM\"","Sremice","My music my amusement  ",10.0,5.0]
["2018-07-03","Serbia","SRB12","Sokol gymnastic club \"ES-EM\"","Sremice","First flight  ",17.0,5.0]
["2018-07-02","Serbia","SRB12","Sokol gymnastic club \"ES-EM\"","Sremice","First flight  ",23.0,5.0]
["2018-07-04","Serbia","SRB12","Sokol gymnastic club \"ES-EM\"","Sremice","First flight  ",11.0,5.0]
["2018-07-01","Serbia","SRB13","Sokol Unit Batajnica","Sokol Unit Batajnica","Wonderful movements  ",3.0,3.0]
["2018-07-02","Serbia","SRB13","Sokol Unit Batajnica","Sokol Unit Batajnica","Wonderful movements  ",5.0,3.0]
["2018-07-01","Serbia","SRB14","Sokol unit \"Belgrade\" Matica","Zero gravity","Zero gravity minitramp  ",5.0,2.0]
["2018-07-02","Serbia","SRB14","Sokol unit \"Belgrade\" Matica","Zero gravity","Zero gravity minitramp  ",6.0,2.0]
["2018-07-02","United States of America","USA01","American Sokol","American Sokol","Sokol Baby Yeah!  ",9.0,4.0]
["2018-07-03","United States of America","USA01","American Sokol","American Sokol","Sokol Baby Yeah!  ",13.0,4.0]
["2018-07-02","United States of America","USA01","American Sokol","American Sokol","Sokol Baby Yeah!  ",25.0,4.0]